bitfinex-derivatives/quotes_SOLF0:USTF0_20240823
["timestamp","ask_amount","ask_price","bid_price","bid_amount"]
[1724430944877,32.6603,144.48,144.47,0.04834325]
[1724430962281,3.4603,144.48,144.47,0.04834325]
[1724430963993,0.04892656,144.49,144.47,0.04834325]
[1724430964695,3.50902656,144.49,144.47,0.04834325]
[1724430964895,0.04892656,144.49,144.47,0.04834325]
[1724430965096,3.4603,144.48,144.47,0.04834325]
[1724430965897,3.50912656,144.49,144.47,0.04834325]
[1724430966293,0.04892656,144.49,144.47,0.04834325]
[1724430966802,3.4597,144.51,144.47,3.44132497]
[1724430967498,3.4594,144.52,144.48,3.4602]
[1724430968090,3.4594,144.52,144.49,0.04901352]
[1724430968485,3.4984738,144.58,144.51,3.4595]
[1724430968785,29.2,144.59,144.53,0.04986588]
[1724430970193,3.4588,144.55,144.53,0.04986588]
[1724430970601,3.4589,144.54,144.53,0.04986588]
[1724430971796,3.4584,144.56,144.53,0.04986588]
[1724430972392,29.2,144.57,144.53,0.04986588]
[1724430972790,3.4588,144.55,144.53,0.04986588]
[1724430973297,3.4586,144.56,144.53,0.04986588]
[1724430974189,3.4586,144.55,144.53,0.04986588]
[1724430975803,29.2,144.59,144.53,3.50896588]
[1724430976195,29.2,144.59,144.53,0.04986588]
[1724430976395,3.4583,144.57,144.53,3.50886588]
[1724430976700,29.2,144.59,144.53,0.04986588]
[1724430976894,3.4584,144.57,144.53,3.50896588]
[1724430977100,29.2,144.59,144.53,0.04986588]
[1724430977499,3.4585,144.56,144.53,0.04986588]
[1724430978006,29.2,144.57,144.53,0.04986588]
[1724430979098,3.4588,144.55,144.53,0.04986588]
[1724430979298,29.2,144.57,144.53,0.04986588]
[1724430979805,3.4587,144.55,144.53,0.04986588]
[1724430980906,3.4589,144.54,144.53,0.04986588]
[1724430982795,3.4588,144.55,144.53,0.04986588]
[1724430984504,3.4585,144.56,144.53,0.04986588]
[1724430985705,78.68486427,144.62,144.54,3.4588]
[1724430985901,78.68486427,144.62,144.57,0.04882975]
[1724430986105,3.4575,144.6,144.57,0.04882975]
[1724430986306,78.68486427,144.62,144.57,0.04882975]
[1724430986505,29.2,144.64,144.57,0.04882975]
[1724430986998,3.51454907,144.64,144.59,29.2]
[1724430987202,3.51454907,144.64,144.6,0.04599598]
[1724430987597,3.51454907,144.64,144.6,3.50329598]
[1724430987993,32.6564,144.65,144.6,0.04599598]
[1724430988196,3.4566,144.64,144.6,0.04599598]
[1724430989108,32.6563,144.65,144.6,3.50339598]
[1724430990102,22.0727,144.74,144.6,29.24599598]
[1724430990305,29.2,144.7,144.66,0.051972]
[1724430990602,29.2,144.68,144.66,0.051972]
[1724430990904,3.4558,144.67,144.66,0.051972]
[1724430991208,29.2,144.68,144.66,0.051972]
[1724430991401,32.6557,144.68,144.66,0.051972]
[1724430992206,3.4558,144.67,144.66,0.051972]
[1724430993207,29.2,144.68,144.66,0.051972]
[1724430993712,32.6556,144.68,144.66,0.051972]
[1724430994300,29.2,144.72,144.66,0.051972]
[1724430994806,3.4552,144.7,144.66,0.051972]
[1724430995908,29.2,144.69,144.66,0.051972]
[1724430996110,32.6553,144.69,144.66,0.051972]
[1724430996309,29.2,144.69,144.66,0.051972]
[1724430996606,29.2,144.69,144.66,3.507972]
[1724430997210,3.4551,144.7,144.66,3.507972]
[1724430997912,32.6549,144.71,144.66,3.507972]
[1724430998102,29.2,144.73,144.66,0.051972]
[1724430999017,3.455,144.71,144.66,0.051972]
[1724430999418,3.455,144.71,144.66,3.507772]
[1724431000823,29.2,144.69,144.66,0.051972]
[1724431001724,32.6554,144.69,144.66,0.051972]
[1724431002116,3.4554,144.69,144.66,0.051972]
[1724431002518,3.4555,144.68,144.66,0.051972]
[1724431005315,3.4558,144.67,144.66,0.051972]
[1724431010629,29.2,144.69,144.66,0.051972]
[1724431010630,3.4556,144.68,144.66,0.051972]
[1724431011626,3.4558,144.67,144.66,0.051972]
[1724431013329,3.4566,144.64,144.58,31.9351]
[1724431013628,29.2,144.67,144.61,3.4571]
[1724431014028,3.4564,144.65,144.61,3.4571]
[1724431014326,0.05309762,144.64,144.62,0.0525732]
[1724431017034,3.50959762,144.64,144.62,0.0525732]
[1724431017427,0.05309762,144.64,144.62,0.0525732]
[1724431017636,3.50969762,144.64,144.62,0.0525732]
[1724431018530,3.4567,144.63,144.62,0.0525732]
[1724431019640,32.6567,144.63,144.62,0.0525732]
[1724431020238,3.4567,144.63,144.62,0.0525732]
[1724431020439,0.05309762,144.64,144.62,0.0525732]
[1724431020440,3.50959762,144.64,144.62,0.0525732]
[1724431022236,0.05309762,144.64,144.62,0.0525732]
[1724431023739,0.05309762,144.64,144.62,3.5093732]
[1724431023939,0.05309762,144.64,144.62,29.2525732]
[1724431024536,3.4559,144.67,144.62,29.2]
[1724431025134,3.4559,144.67,144.63,4.8572]
[1724431025536,3.4556,144.68,144.64,29.24579099]
[1724431025835,3.4556,144.68,144.65,0.04759111]
[1724431026235,3.4553,144.69,144.65,3.50379111]
[1724431027035,3.4556,144.68,144.65,3.50379111]
[1724431027942,3.4554,144.69,144.65,3.50379111]
[1724431028143,3.4554,144.69,144.66,0.04750694]
[1724431028339,29.2,144.73,144.66,3.50330694]
[1724431028542,3.4552,144.7,144.66,0.04750694]
[1724431028741,3.4552,144.7,144.66,29.24750694]
[1724431030345,3.4552,144.7,144.67,3.4557]
[1724431030545,3.4547,144.72,144.66,29.24750694]
[1724431030744,3.4547,144.72,144.68,0.04858309]
[1724431030947,3.4547,144.72,144.68,3.50408309]
[1724431031143,3.4548,144.71,144.68,0.04858309]
[1724431031848,29.2,144.75,144.68,29.24858309]
[1724431032049,29.2,144.77,144.68,29.24858309]
[1724431032247,29.2,144.77,144.71,0.05289289]
[1724431033153,20.79,144.85,144.71,29.25289289]
[1724431033342,29.2,144.81,144.71,29.25289289]
[1724431033543,29.2,144.81,144.71,29.2]
[1724431033947,29.2,144.81,144.75,0.04869455]
[1724431034141,3.4528,144.8,144.75,0.04869455]
[1724431034339,29.2,144.81,144.75,0.04869455]
[1724431035357,3.4531,144.79,144.75,0.04869455]
[1724431035645,29.2,144.81,144.75,0.04869455]
[1724431035850,3.4533,144.78,144.75,0.04869455]
[1724431036941,2.57031505,145.05,144.75,0.04869455]
[1724431037245,29.2,144.85,144.8,0.04844708]
[1724431037447,1.4092,144.87,144.8,0.04844708]
[1724431037448,29.2,144.83,144.8,0.04844708]
[1724431037647,3.4524,144.81,144.8,0.04844708]
[1724431037846,32.6524,144.81,144.8,0.04844708]
[1724431039151,3.4524,144.81,144.8,0.04844708]
[1724431042046,32.6524,144.81,144.8,0.04844708]
[1724431044849,3.4537,144.76,144.72,29.2]
[1724431045147,29.2,144.79,144.72,29.2]
[1724431045549,3.4533,144.78,144.74,3.454]
[1724431046050,0.04564368,144.77,144.75,0.05025696]
[1724431046555,3.49904368,144.77,144.75,0.05025696]
[1724431047153,3.4536,144.76,144.75,0.05025696]
[1724431047947,0.04564368,144.77,144.75,0.05025696]
[1724431048547,3.49914368,144.77,144.75,0.05025696]
[1724431048848,0.04564368,144.77,144.75,0.05025696]
[1724431049854,3.4536,144.76,144.75,0.05025696]
[1724431051154,3.49914368,144.77,144.75,0.05025696]
[1724431051653,0.04564368,144.77,144.75,0.05025696]
[1724431052757,0.04564368,144.77,144.75,29.25025696]
[1724431053657,0.04564368,144.77,144.76,3.4536]
[1724431053964,0.04564368,144.77,144.75,29.25025696]
[1724431054164,0.04564368,144.77,144.75,32.70395696]
[1724431054756,0.04564368,144.77,144.75,3.50395696]
[1724431055357,0.04564368,144.77,144.75,0.05025696]
[1724431056063,3.49914368,144.77,144.75,0.05025696]
[1724431056451,0.04564368,144.77,144.75,0.05025696]
[1724431056958,3.4536,144.76,144.75,0.05025696]
[1724431057959,32.6536,144.76,144.75,0.05025696]
[1724431058454,3.4536,144.76,144.75,0.05025696]
[1724431066456,32.6536,144.76,144.75,0.05025696]
[1724431067167,3.4545,144.73,144.68,1.3665]
[1724431067567,3.4545,144.73,144.69,3.4552]
[1724431067766,3.4546,144.72,144.68,1.3665]
[1724431067969,0.05118534,144.71,144.69,0.04950248]
[1724431068271,3.50608534,144.71,144.69,0.04950248]
[1724431068473,0.05118534,144.71,144.69,0.04950248]
[1724431069367,0.05118534,144.71,144.7,3.455]
[1724431069574,3.4539,144.75,144.7,29.2]
[1724431069771,3.4539,144.75,144.71,3.4546]
[1724431070676,0.04772464,144.74,144.72,29.24397449]
[1724431070865,29.2,144.81,144.74,29.2]
[1724431071169,0.04772464,144.79,144.76,3.4983732]
[1724431071369,0.04772464,144.79,144.76,3.49888983]
[1724431071668,0.04772464,144.79,144.76,3.49898983]
[1724431072173,0.04772464,144.79,144.76,0.04548983]
[1724431072559,3.4532,144.78,144.76,0.04548983]
[1724431074073,3.4534,144.77,144.76,0.04548983]
[1724431074769,0.04772464,144.79,144.76,0.04548983]
[1724431074965,3.4532,144.78,144.76,0.04548983]
[1724431075564,0.04772464,144.79,144.76,0.04548983]
[1724431078165,0.04772464,144.79,144.76,3.49898983]
[1724431079273,3.50062464,144.79,144.76,0.04548983]
[1724431080071,0.04772464,144.79,144.76,0.04548983]
[1724431080275,0.04772464,144.79,144.76,3.49898983]
[1724431081965,0.04772464,144.79,144.77,3.4533]
[1724431084072,0.04772464,144.79,144.78,3.4531]
[1724431084274,48.87575255,144.86,144.77,29.2]
[1724431084469,48.87575255,144.86,144.79,29.2]
[1724431084675,3.452,144.83,144.79,29.2]
[1724431085366,3.452,144.83,144.8,0.05212488]
[1724431087166,3.4522,144.82,144.8,0.05212488]
[1724431087475,52.31278079,144.86,144.8,0.05212488]
[1724431087669,29.2,144.85,144.8,0.05212488]
[1724431088880,3.4523,144.82,144.8,0.05212488]
[1724431089174,52.31278079,144.86,144.8,0.05212488]
[1724431089564,52.31278079,144.86,144.8,1.44102488]
[1724431089974,48.87575255,144.86,144.81,29.2]
[1724431090680,29.2,144.9,144.82,32.652]
[1724431090871,29.2,144.9,144.85,0.04658875]
[1724431091373,3.4511,144.87,144.85,0.04658875]
[1724431091866,48.41,144.93,144.85,0.04658875]
[1724431091867,27.62,144.93,144.86,29.2]
[1724431092065,56.82,144.93,144.85,0.04658875]
[1724431092266,29.2,144.93,144.84,29.2]
[1724431092469,29.2,144.93,144.88,0.04828845]
[1724431094674,29.2,144.92,144.88,0.04828845]
[1724431096382,3.4505,144.89,144.88,0.04828845]
[1724431103083,32.6505,144.89,144.88,0.04828845]
[1724431106076,3.451,144.87,144.82,3.452]
[1724431106584,29.2,144.89,144.82,3.452]
[1724431106783,29.2,144.89,144.81,33.9375]
[1724431106987,29.2,144.87,144.81,1.2852]
[1724431107289,0.04828845,144.85,144.83,0.05199243]
[1724431108278,3.49978845,144.85,144.83,0.05199243]
[1724431108485,0.04828845,144.85,144.83,0.05199243]
[1724431108890,3.49978845,144.85,144.83,0.05199243]
[1724431109588,0.04828845,144.85,144.83,0.05199243]
[1724431110380,3.49988845,144.85,144.83,0.05199243]
[1724431111877,3.4517,144.84,144.83,0.05199243]
[1724431113192,32.6517,144.84,144.83,0.05199243]
[1724431114187,3.4525,144.81,144.77,1.2852]
[1724431114486,29.2,144.82,144.77,1.2852]
[1724431114883,29.2,144.82,144.76,1.3316]
[1724431115187,0.05242491,144.8,144.78,0.04936497]
[1724431115376,3.50522491,144.8,144.78,0.04936497]
[1724431116279,0.05242491,144.8,144.78,0.04936497]
[1724431117481,0.05242491,144.8,144.78,3.50226497]
[1724431117685,0.05242491,144.8,144.78,32.70226497]
[1724431117887,33.8895565,144.88,144.78,29.24936497]
[1724431118093,33.8895565,144.88,144.8,32.6525]
[1724431118293,3.4517,144.84,144.8,32.6525]
[1724431118889,0.04785597,144.83,144.81,0.04987808]
[1724431120694,3.49985597,144.83,144.81,0.04987808]
[1724431122495,3.4522,144.82,144.81,0.04987808]
[1724431127806,3.49985597,144.83,144.81,0.04987808]
[1724431130606,3.4522,144.82,144.81,0.04987808]
[1724431133013,3.49985597,144.83,144.81,0.04987808]
[1724431135303,3.4522,144.82,144.81,0.04987808]
[1724431136011,0.04785597,144.83,144.81,0.04987808]
[1724431136212,3.49985597,144.83,144.81,0.04987808]
[1724431137108,0.04785597,144.83,144.81,0.04987808]
[1724431137506,3.4522,144.82,144.81,0.04987808]
[1724431138111,3.49985597,144.83,144.81,0.04987808]
[1724431138311,0.04785597,144.83,144.81,0.04987808]
[1724431139114,3.4522,144.82,144.81,0.04987808]
[1724431139712,3.49985597,144.83,144.81,0.04987808]
[1724431140107,0.04785597,144.83,144.81,0.04987808]
[1724431141015,3.49985597,144.83,144.81,0.04987808]
[1724431145214,0.04785597,144.83,144.81,0.04987808]
[1724431150421,29.2,144.88,144.81,0.04987808]
[1724431150620,3.4513,144.86,144.82,3.4522]
[1724431151823,29.2,144.9,144.81,34.047472]
[1724431152026,29.2,144.9,144.84,0.05236381]
[1724431152828,3.4509,144.88,144.84,3.50396381]
[1724431154421,3.4511,144.87,144.84,0.05236381]
[1724431155325,3.4512,144.86,144.84,0.05236381]
[1724431155520,3.4512,144.86,144.84,0.0514992]
[1724431156628,3.4515,144.85,144.84,0.0514992]
[1724431158028,3.4513,144.86,144.84,0.0514992]
[1724431158220,3.4513,144.86,144.84,0.04822156]
[1724431158424,29.2,144.89,144.84,0.04822156]
[1724431159334,3.4515,144.85,144.84,0.04822156]
[1724431164331,3.4512,144.86,144.84,0.04822156]
[1724431164532,3.4512,144.86,144.84,0.05115469]
[1724431166438,3.451,144.87,144.84,3.50285469]
[1724431167632,29.2,144.91,144.84,0.05115469]
[1724431168833,3.4511,144.87,144.84,0.05115469]
[1724431169234,3.4512,144.86,144.84,0.05115469]
[1724431171840,3.4515,144.85,144.84,0.05115469]
[1724431172045,29.2,144.87,144.83,0.04545041]
[1724431172342,29.2,144.87,144.84,0.04625076]
[1724431172533,32.6515,144.85,144.84,0.04625076]
[1724431172733,32.6515,144.85,144.76,42.40294026]
[1724431172734,29.2,144.85,144.76,42.40294026]
[1724431172930,29.2,144.85,144.77,29.2]
[1724431173436,29.2,144.85,144.79,3.4529]
[1724431173841,0.04562014,144.83,144.81,0.05320014]
[1724431174231,3.4522,144.82,144.81,0.05320014]
[1724431179643,0.04562014,144.83,144.81,0.05320014]
[1724431180534,3.4522,144.82,144.81,0.05320014]
[1724431180945,0.04562014,144.83,144.81,0.05320014]
[1724431181146,3.49762014,144.83,144.81,0.05320014]
[1724431181942,3.4522,144.82,144.81,0.05320014]
[1724431182440,0.04562014,144.83,144.81,0.05320014]
[1724431183342,3.49772014,144.83,144.81,0.05320014]
[1724431185747,3.4522,144.82,144.81,0.05320014]
[1724431186151,0.04562014,144.83,144.81,0.05320014]
[1724431186650,3.49782014,144.83,144.81,0.05320014]
[1724431190051,0.04562014,144.83,144.81,0.05320014]
[1724431190553,0.1843,144.91,144.82,29.2]
[1724431190554,3.4511,144.87,144.82,29.2]
[1724431190850,3.4511,144.87,144.82,30.5326]
[1724431191052,3.4511,144.87,144.83,3.4519]
[1724431191451,3.4513,144.86,144.82,34.06994299]
[1724431191651,3.4513,144.86,144.83,0.05200955]
[1724431192552,3.4511,144.87,144.84,3.4517]
[1724431192751,3.4511,144.87,144.84,3.50030148]
[1724431193942,29.2,144.91,144.84,3.50030148]
[1724431193943,3.4508,144.88,144.84,3.50030148]
[1724431194643,3.4508,144.88,144.85,3.4514]
[1724431195656,3.4508,144.88,144.84,3.50020148]
[1724431198859,3.451,144.87,144.84,3.50020148]
[1724431199061,29.2,144.91,144.84,0.04860148]
[1724431199559,3.4509,144.88,144.84,3.50030148]
[1724431200061,29.2,144.91,144.84,0.04860148]
[1724431200964,49.1646813,144.92,144.84,0.04860148]
[1724431201253,78.3646813,144.92,144.84,0.04860148]
[1724431201459,78.3646813,144.92,144.84,3.50020148]
[1724431203757,78.3646813,144.92,144.84,0.04860148]
[1724431204752,78.3646813,144.92,144.84,3.50030148]
[1724431204753,3.4508,144.88,144.84,3.50030148]
[1724431205857,3.4508,144.88,144.84,0.04860148]
[1724431205858,32.65790124,144.88,144.84,0.04860148]
[1724431206063,29.2,144.88,144.84,0.04860148]
[1724431206660,3.4514,144.86,144.84,0.04860148]
[1724431206866,29.2,144.88,144.84,0.04860148]
[1724431207058,29.2,144.9,144.84,0.04860148]
[1724431207463,3.4505,144.89,144.85,3.4513]
[1724431207666,3.4505,144.89,144.86,0.04915448]
[1724431210667,3.4508,144.88,144.86,0.04915448]
[1724431210967,29.2,144.94,144.86,0.04915448]
[1724431211661,29.2,144.94,144.86,3.50035448]
[1724431212062,3.4502,144.91,144.86,3.50035448]
[1724431212263,29.2,144.94,144.86,3.50035448]
[1724431212457,29.2,144.94,144.86,0.04915448]
[1724431212859,3.4503,144.9,144.86,0.04915448]
[1724431214461,3.4503,144.9,144.86,3.50035448]
[1724431214664,3.45,144.92,144.86,0.04915448]
[1724431214866,3.45,144.92,144.87,32.6508]
[1724431215568,3.4501,144.91,144.87,32.6508]
[1724431216164,3.4501,144.91,144.88,0.04527077]
[1724431216764,3.4501,144.91,144.88,3.49597077]
[1724431216965,3.4499,144.92,144.88,3.49597077]
[1724431218174,3.4501,144.91,144.88,3.49597077]
[1724431218369,3.4501,144.91,144.88,0.04527077]
[1724431219674,29.2,144.95,144.88,0.04527077]
[1724431220267,3.4502,144.91,144.88,0.04527077]
[1724431220676,29.2,144.93,144.88,0.04527077]
[1724431220867,29.2,144.91,144.88,0.04527077]
[1724431221173,1.3213,144.95,144.88,0.04527077]
[1724431221369,30.5213,144.95,144.88,0.04527077]
[1724431221576,30.5213,144.95,144.88,3.49597077]
[1724431221772,29.2,144.95,144.88,3.49597077]
[1724431222375,3.4497,144.93,144.88,3.49597077]
[1724431223079,3.4497,144.93,144.89,3.4505]
[1724431224172,3.4497,144.93,144.88,3.49597077]
[1724431224582,3.4497,144.93,144.88,0.04527077]
[1724431224877,3.4502,144.91,144.88,0.04527077]
[1724431226581,29.2,144.93,144.88,0.04527077]
[1724431227973,3.4502,144.91,144.88,0.04527077]
[1724431231878,3.4502,144.91,144.88,3.49587077]
[1724431233192,29.2,144.95,144.88,0.04527077]
[1724431233193,3.4503,144.9,144.88,0.04527077]
[1724431234187,3.4503,144.9,144.88,3.49607077]
[1724431234486,3.4501,144.91,144.88,3.49607077]
[1724431237382,1.5413,144.96,144.88,0.04527077]
[1724431237582,3.4499,144.92,144.89,3.4505]
[1724431237783,29.2,144.98,144.89,29.2]
[1724431238087,3.4496,144.93,144.9,3.4501]
[1724431238274,3.4496,144.93,144.9,6.96696348]
[1724431238476,3.4496,144.93,144.92,0.04813756]
[1724431238785,3.4494,144.94,144.92,0.04813756]
[1724431240090,32.59876322,144.99,144.92,0.04813756]
[1724431240593,3.4493,144.95,144.92,0.04813756]
[1724431241284,3.4489,144.96,144.92,0.04813756]
[1724431242285,3.4482,144.99,144.92,0.04813756]
[1724431242491,3.48668009,145.04,144.95,29.2]
[1724431242784,3.4474,145.02,144.97,0.04610667]
[1724431243489,29.2,145.05,144.97,0.04610667]
[1724431243490,3.4477,145.01,144.97,0.04610667]
[1724431243788,3.42875265,145.04,144.97,0.04610667]
[1724431244385,1.8437,145.07,144.98,29.2]
[1724431244577,1.8437,145.07,145.01,0.0517696]
[1724431244578,31.0437,145.07,145.01,0.0517696]
[1724431244889,29.2,145.04,145.01,0.0517696]
[1724431245084,29.2,145.02,145.01,0.0517696]
[1724431245285,32.6474,145.02,145.01,0.0517696]
[1724431245485,3.4474,145.02,145.01,0.0517696]
[1724431246187,32.6474,145.02,145.01,0.0517696]
[1724431249890,32.6474,145.02,144.94,32.6493]
[1724431249891,3.4482,144.99,144.94,29.2]
[1724431250094,3.4482,144.99,144.95,3.57550384]
[1724431250291,3.4482,144.99,144.93,3.4496]
[1724431250488,3.4482,144.99,144.94,3.57550562]
[1724431250690,3.4485,144.98,144.93,3.4496]
[1724431250895,0.05226862,144.97,144.94,3.61986225]
[1724431251084,0.05226862,144.97,144.94,0.04355001]
[1724431251896,3.50086862,144.97,144.94,0.04355001]
[1724431252095,0.05226862,144.97,144.94,0.04355001]
[1724431252289,29.25226862,144.97,144.94,0.04355001]
[1724431253394,3.4491,144.95,144.94,0.04355001]
[1724431253988,3.4496,144.93,144.88,3.4507]
[1724431254194,3.4496,144.93,144.89,3.58373799]
[1724431254393,3.4496,144.93,144.9,3.58373799]
[1724431254597,29.2,144.95,144.91,3.58373799]
[1724431254898,32.66869611,145.04,144.87,29.2]
[1724431254899,29.2,144.96,144.87,29.2]
[1724431255198,3.45,144.92,144.9,0.04450783]
[1724431255498,0.04536541,144.93,144.9,0.04450783]
[1724431256700,3.45,144.92,144.9,0.04450783]
[1724431257603,3.45,144.91,144.9,0.04450783]
[1724431258194,3.45,144.91,144.9,3.62852071]
[1724431258500,3.4499,144.92,144.9,3.62852071]
[1724431258696,3.4499,144.92,144.9,0.04450783]
[1724431258898,0.04536541,144.93,144.9,0.04450783]
[1724431259093,3.45,144.91,144.9,0.04450783]
[1724431259998,3.4499,144.92,144.9,0.04450783]
[1724431260599,3.45,144.91,144.9,0.04450783]
[1724431261001,3.45,144.91,144.9,3.62952926]
[1724431264002,3.4499,144.92,144.9,3.62952926]
[1724431264197,3.4499,144.92,144.91,3.58502143]
[1724431264396,0.04536541,144.93,144.91,3.58502143]
[1724431264603,0.04536541,144.93,144.9,0.04450783]
[1724431264906,0.04536541,144.93,144.91,3.58468043]
[1724431265207,0.04536541,144.93,144.9,29.24450783]
[1724431265398,0.04536541,144.93,144.92,3.58405472]
[1724431265600,0.04536541,144.93,144.9,30.63600783]
[1724431265796,0.04536541,144.93,144.91,3.58429114]
[1724431265998,0.04536541,144.93,144.92,3.58429114]
[1724431266695,0.04536541,144.93,144.91,3.58429114]
[1724431267997,0.04536541,144.93,144.91,7.03419114]
[1724431268200,0.04536541,144.93,144.92,3.58429114]
[1724431270404,3.49496541,144.93,144.92,3.58429114]
[1724431271903,0.04536541,144.93,144.92,7.03409114]
[1724431272106,0.04536541,144.93,144.9,32.05510783]
[1724431272406,0.04536541,144.93,144.91,3.58352026]
[1724431272706,0.04536541,144.93,144.92,3.58352026]
[1724431273612,3.49496541,144.93,144.92,3.58352026]
[1724431275303,0.04536541,144.93,144.92,3.58352026]
[1724431276007,0.04536541,144.93,144.9,3.49470783]
[1724431276212,0.04536541,144.93,144.9,0.04450783]
[1724431276714,3.49506541,144.93,144.91,3.58407556]
[1724431277111,3.4498,144.92,144.91,3.58407556]
[1724431278609,3.49506541,144.93,144.91,3.58407556]
[1724431279612,0.04536541,144.93,144.91,3.58407556]
[1724431280917,3.49496541,144.93,144.91,3.58407556]
[1724431282206,3.4499,144.92,144.9,0.04450783]
[1724431282513,3.4499,144.92,144.91,3.58534341]
[1724431284519,3.49496541,144.93,144.91,3.58534341]
[1724431284721,3.49496541,144.93,144.92,3.58534341]
[1724431285013,3.49496541,144.93,144.91,3.58534341]
[1724431285322,3.49496541,144.93,144.9,0.04450783]
[1724431286016,3.49496541,144.93,144.91,3.58528844]
[1724431286221,3.49496541,144.93,144.92,3.58528844]
[1724431288619,3.4499,144.92,144.9,0.04450783]
[1724431288919,0.04536541,144.93,144.91,3.58458416]
[1724431289115,0.04536541,144.93,144.92,3.58458416]
[1724431290815,3.49496541,144.93,144.92,3.58458416]
[1724431291122,0.04536541,144.93,144.92,3.58458416]
[1724431291923,0.04536541,144.93,144.91,6.1521]
[1724431292118,0.04536541,144.93,144.92,3.583077]
[1724431294320,3.449,144.96,144.92,3.583077]
[1724431294526,3.449,144.96,144.93,3.583077]
[1724431294721,3.449,144.96,144.94,3.583077]
[1724431294916,3.449,144.96,144.95,3.583077]
[1724431295122,3.449,144.96,144.92,3.4497]
[1724431295323,0.05058482,144.95,144.93,3.62776679]
[1724431295527,3.49968482,144.95,144.94,3.58256541]
[1724431296527,3.4493,144.94,144.93,0.04520138]
[1724431296728,0.05058482,144.95,144.93,3.62820866]
[1724431297024,0.05058482,144.95,144.94,3.58300728]
[1724431298331,3.49978482,144.95,144.94,3.58300728]
[1724431299129,32.69978482,144.95,144.94,3.58300728]
[1724431299323,3.49978482,144.95,144.94,3.58300728]
[1724431299822,0.05058482,144.95,144.94,3.58300728]
[1724431300731,3.49968482,144.95,144.94,3.58300728]
[1724431301130,3.49968482,144.95,144.93,0.04520138]
[1724431301131,3.4493,144.94,144.93,0.04520138]
[1724431301332,32.6493,144.94,144.93,3.62886311]
[1724431302033,32.6493,144.94,144.93,0.04520138]
[1724431303328,29.2,144.94,144.85,2.6854]
[1724431303523,3.40081866,144.96,144.86,1.3746]
[1724431303524,29.2,144.92,144.86,1.3746]
[1724431304128,3.4502,144.91,144.86,4.8257]
[1724431304429,29.2,144.93,144.86,4.8257]
[1724431304430,0.04985644,144.9,144.87,0.05059528]
[1724431305721,3.50025644,144.9,144.87,0.05059528]
[1724431305921,0.04985644,144.9,144.87,0.05059528]
[1724431307538,29.24985644,144.9,144.87,0.05059528]
[1724431308235,0.04985644,144.9,144.87,0.05059528]
[1724431308824,3.4507,144.89,144.87,0.05059528]
[1724431309031,29.24985644,144.9,144.87,0.05059528]
[1724431309438,3.4508,144.88,144.87,0.05059528]
[1724431310335,58.4,144.89,144.8,1.3643]
[1724431310535,29.2,144.84,144.8,1.3643]
[1724431310738,3.4522,144.83,144.8,1.3643]
[1724431311126,29.2,144.84,144.77,3.52424901]
[1724431311330,0.05239926,144.82,144.79,0.04521606]
[1724431311726,29.25239926,144.82,144.79,0.04521606]
[1724431311932,3.4526,144.81,144.79,0.04521606]
[1724431312130,29.2,144.8,144.79,0.04521606]
[1724431312331,29.2,144.8,144.71,16.98336281]
[1724431312539,3.4538,144.76,144.7,2.6947]
[1724431312837,29.2,144.75,144.7,2.6947]
[1724431313034,32.654,144.75,144.7,2.6947]
[1724431313232,1.4462,144.81,144.66,16.99554804]
[1724431313233,29.2,144.73,144.66,16.99554804]
[1724431313432,3.41802198,144.78,144.65,24.16956546]
[1724431313634,29.25166718,144.71,144.68,0.04649666]
[1724431313835,29.25315882,144.71,144.68,0.04364978]
[1724431314229,3.4551,144.7,144.68,0.04364978]
[1724431314432,29.25315882,144.71,144.68,0.04364978]
[1724431314632,0.05315882,144.71,144.68,0.04364978]
[1724431316127,0.05315882,144.71,144.69,29.2]
[1724431316328,29.2,144.78,144.69,29.2]
[1724431316531,29.2,144.8,144.71,29.2]
[1724431317347,3.49912356,144.77,144.74,0.04374877]
[1724431317640,0.04552356,144.77,144.74,0.04374877]
[1724431318236,3.4537,144.76,144.74,0.04374877]
[1724431318838,0.04552356,144.77,144.64,1.3188]
[1724431319044,29.2,144.76,144.65,2.8209]
[1724431319236,29.2,144.76,144.66,29.2]